fUSD/lending_fUSD_20260615
["ID","MTS","AMOUNT","RATE_DAILY","PERIOD"]
[425123606,1781536241000,-6075.82,0.00014999,2]
[425123607,1781536241000,-300.0,0.00014999,2]
[425123610,1781536241000,-300.0,0.00014999,2]
[425123609,1781536241000,-300.0,0.00014999,2]
[425123608,1781536241000,-300.0,0.00014999,2]
[425123592,1781536241000,-1000.0,0.0001497,2]
[425123595,1781536241000,-1000.0,0.0001497,2]
[425123585,1781536241000,-312.04934786,0.000149,2]
[425123590,1781536241000,-447.45479291,0.000149,2]
[425123571,1781536241000,-261.468884,0.000147,2]
[425123569,1781536241000,-318.98,0.00014685,2]
[425123573,1781536241000,-19075.86986311,0.00014705,2]
[425123567,1781536241000,-500.0,0.00014681,2]
[425123566,1781536241000,-500.0,0.00014681,2]
[425123572,1781536241000,-202.836467,0.000147,2]
[425123579,1781536241000,-300.18,0.00014807,2]
[425123589,1781536241000,-1840.74006792,0.000149,2]
[425123570,1781536241000,-337.049734,0.000147,2]
[425123578,1781536241000,-19075.86986311,0.00014802,2]
[425123580,1781536241000,-318.98,0.0001482,2]
[425123586,1781536241000,-432.9914817,0.000149,2]
[425123588,1781536241000,-30246.19882108,0.000149,2]
[425123583,1781536241000,-385.06,0.00014899,2]
[425123577,1781536241000,-150.0,0.00014772,2]
[425123587,1781536241000,-19075.86986311,0.000149,2]
[425123582,1781536241000,-1761.85374057,0.0001487,2]
[425123581,1781536241000,-308.17,0.00014828,2]
[425123584,1781536241000,-1132.291563,0.00014899,2]
[425123624,1781536243000,-4022.1151897,0.00015,2]
[425123623,1781536243000,-139.4982361,0.00015,2]
[425123622,1781536243000,-572.98000088,0.00013498,2]
[425123647,1781536246000,-3331.14656986,0.00015,2]
[425123649,1781536567000,183.47664226,7.945e-05,2]
[425123650,1781536567000,103.58767574,7.945e-05,2]
[425123651,1781536585000,179.5,9.302e-05,2]
[425123652,1781536729000,-1093.87,0.00011224,2]
[425123653,1781536951000,-1494.12,0.00010951,2]
[425123654,1781536968000,-230.43,0.00011108,2]
[425123658,1781536968000,-300.0,0.00011249,2]
[425123655,1781536968000,-200.0,0.00011136,2]
[425123657,1781536968000,-160.0,0.00011226,2]
[425123659,1781536968000,-500.0,0.00011273,2]
[425123656,1781536968000,-906.13,0.00011224,2]
[425123660,1781536968000,-500.0,0.00011273,2]
[425123662,1781536968000,-500.0,0.00011273,2]
[425123663,1781536968000,-500.0,0.00011273,2]
[425123661,1781536968000,-500.0,0.00011273,2]
[425123664,1781536968000,-500.0,0.00011273,2]
[425123666,1781536968000,-500.0,0.00011273,2]
[425123667,1781536968000,-500.0,0.00011273,2]
[425123668,1781536968000,-500.0,0.00011273,2]
[425123669,1781536968000,-500.0,0.00011273,2]
[425123672,1781536968000,-500.0,0.00011273,2]
[425123670,1781536968000,-500.0,0.00011273,2]
[425123671,1781536968000,-500.0,0.00011273,2]
[425123673,1781536968000,-500.0,0.00011273,2]
[425123674,1781536968000,-500.0,0.00011273,2]
[425123675,1781536968000,-203.44,0.00011273,2]
[425123665,1781536968000,-500.0,0.00011273,2]
[425123684,1781536969000,-500.0,0.00011273,2]
[425123687,1781536969000,-500.0,0.00011273,2]
[425123683,1781536969000,-500.0,0.00011273,2]
[425123681,1781536969000,-500.0,0.00011273,2]
[425123676,1781536969000,-296.56,0.00011273,2]
[425123680,1781536969000,-500.0,0.00011273,2]
[425123677,1781536969000,-257.56764738,0.00011273,2]
[425123678,1781536969000,-500.0,0.00011273,2]
[425123686,1781536969000,-500.0,0.00011273,2]
[425123682,1781536969000,-500.0,0.00011273,2]
[425123685,1781536969000,-500.0,0.00011273,2]
[425123679,1781536969000,-500.0,0.00011273,2]
[425123688,1781536969000,-500.0,0.00011273,2]
[425123699,1781536969000,-393.71917222,0.00011773,2]
[425123698,1781536969000,-158.34601669,0.00011773,2]
[425123697,1781536969000,-500.0,0.00011773,2]
[425123694,1781536969000,-150.0,0.00011771,2]
[425123696,1781536969000,-570.34045387,0.00011773,2]
[425123693,1781536969000,-230.43,0.00011725,2]
[425123692,1781536969000,-150.0,0.00011524,2]
[425123691,1781536969000,-342.04670984,0.00011514,2]
[425123689,1781536969000,-1000.0,0.00011274,2]
[425123695,1781536969000,-150.99,0.00011772,2]
[425123690,1781536969000,-300.0,0.00011514,2]
[425123704,1781536970000,-500.0,0.00011773,2]
[425123701,1781536970000,-500.0,0.00011773,2]
[425123700,1781536970000,-106.28082778,0.00011773,2]
[425123703,1781536970000,-500.0,0.00011773,2]
[425123702,1781536970000,-318.33618575,0.00011773,2]
[425123705,1781536970000,-500.0,0.00011773,2]
[425123707,1781536970000,-500.0,0.00011773,2]
[425123709,1781536970000,-300.0,0.00011774,2]
[425123706,1781536970000,-445.97610954,0.00011773,2]
[425123712,1781536970000,-4518.21687693,0.00011774,2]
[425123710,1781536970000,-500.0,0.00011774,2]
[425123711,1781536970000,-299.99,0.00011774,2]
[425123708,1781536970000,-1011.2,0.00011774,2]
[425123713,1781536971000,-5481.77312307,0.00011774,2]
[425123714,1781536971000,-4518.22687693,0.00011774,2]
[425123726,1781536973000,-500.0,0.00011774,2]
[425123724,1781536973000,-151.0,0.00011774,2]
[425123722,1781536973000,-150.0,0.00011774,2]
[425123719,1781536973000,-150.0,0.00011774,2]
[425123717,1781536973000,-152.0,0.00011774,2]
[425123720,1781536973000,-151.0,0.00011774,2]
[425123718,1781536973000,-152.0,0.00011774,2]
[425123715,1781536973000,-3431.66312307,0.00011774,2]
[425123716,1781536973000,-151.0,0.00011774,2]
[425123721,1781536973000,-153.0,0.00011774,2]
[425123723,1781536973000,-150.0,0.00011774,2]
[425123728,1781536973000,-330.95934294,0.00011786,2]
[425123727,1781536973000,-300.0,0.00011786,2]
[425123736,1781536973000,-151.0,0.00011812,2]
[425123738,1781536973000,-151.0,0.00011813,2]
[425123737,1781536973000,-151.0,0.00011812,2]
[425123732,1781536973000,-150.0,0.00011812,2]
[425123734,1781536973000,-151.0,0.00011812,2]
[425123725,1781536973000,-151.0,0.00011774,2]
[425123733,1781536973000,-153.0,0.00011812,2]
[425123731,1781536973000,-150.0,0.00011811,2]
[425123730,1781536973000,-563.0872287,0.00011796,2]
[425123729,1781536973000,-500.0,0.00011796,2]
[425123735,1781536973000,-150.0,0.00011812,2]
[425123739,1781536974000,-151.0,0.00011813,2]
[425123742,1781536974000,-160.0,0.00011822,2]
[425123740,1781536974000,-151.0,0.00011813,2]
[425123741,1781536974000,-216.09656886,0.00011822,2]
[425123744,1781536974000,-8095.66590993,0.0001183,2]
[425123745,1781536974000,-994.9876,0.00011853,2]
[425123747,1781536974000,-150.0,0.00011853,2]
[425123746,1781536974000,-150.0,0.00011853,2]
[425123743,1781536974000,-978.19373643,0.0001183,2]
[425123748,1781536974000,-609.34649007,0.00011873,2]
[425123749,1781536975000,-10000.0,0.00011873,2]
[425123750,1781536976000,-10000.0,0.00011873,2]
[425123752,1781536977000,-10000.0,0.00011873,2]
[425123751,1781536977000,-10000.0,0.00011873,2]
[425123753,1781536978000,-10000.0,0.00011873,2]
[425123754,1781536979000,-10000.0,0.00011873,2]
[425123755,1781536980000,-10000.0,0.00011873,2]
[425123756,1781536981000,-10000.0,0.00011873,2]
[425123757,1781536982000,-10000.0,0.00011873,2]
[425123758,1781536983000,-10000.0,0.00011873,2]
[425123759,1781536984000,-10000.0,0.00011873,2]
[425123760,1781536985000,-10000.0,0.00011873,2]
[425123772,1781537134000,-151.52313596,0.00011857,2]
[425123771,1781537134000,-212.18327668,0.00011857,2]
[425123770,1781537134000,-500.0,0.00011857,2]
[425123769,1781537134000,-500.0,0.00011857,2]
[425123768,1781537134000,-500.0,0.00011857,2]
[425123762,1781537134000,-183.55011484,0.00011058,2]
[425123764,1781537134000,-160.0,0.00011273,2]
[425123766,1781537134000,-1059758.8651,0.0001173,2]
[425123767,1781537134000,-150.0,0.00011857,2]
[425123763,1781537134000,-157.16164133,0.00011058,2]
[425123775,1781537134000,-379.91110101,0.00011857,2]
[425123765,1781537134000,-160.0,0.00011273,2]
[425123774,1781537134000,-500.0,0.00011857,2]
[425123777,1781537134000,-500.0,0.00011857,2]
[425123785,1781537134000,-216.09656886,0.00011858,2]
[425123778,1781537134000,-500.0,0.00011857,2]
[425123776,1781537134000,-500.0,0.00011857,2]
[425123779,1781537134000,-643.58717684,0.00011857,2]
[425123780,1781537134000,-330.24632547,0.00011857,2]
[425123782,1781537134000,-162.17922886,0.00011857,2]
[425123783,1781537134000,-370.11025436,0.00011858,2]
[425123781,1781537134000,-500.0,0.00011857,2]
[425123784,1781537134000,-153.0,0.00011858,2]
[425123773,1781537134000,-171.93780308,0.00011857,2]
[425123786,1781537134000,-905818.8717811,0.00011858,2]
[425123787,1781537134000,-160.80492544,0.00011865,2]
[425123788,1781537134000,-26659.97156617,0.00011873,2]
[425123789,1781537179000,150.0,0.000165,90]
[425123791,1781537351000,-4019.96449349,0.00011773,2]
[425123818,1781537431000,-500.0,0.00011794,2]
[425123813,1781537431000,-500.0,0.00011794,2]
[425123819,1781537431000,-184.68658099,0.00011794,2]
[425123817,1781537431000,-198.52829367,0.00011794,2]
[425123820,1781537431000,-500.0,0.00011794,2]
[425123823,1781537431000,-500.0,0.00011794,2]
[425123827,1781537431000,-500.0,0.00011794,2]
[425123821,1781537431000,-500.0,0.00011794,2]
[425123822,1781537431000,-500.0,0.00011794,2]
[425123828,1781537431000,-500.0,0.00011794,2]
[425123812,1781537431000,-150.0,0.00011794,2]
[425123825,1781537431000,-500.0,0.00011794,2]
[425123815,1781537431000,-422.83533003,0.00011794,2]
[425123807,1781537431000,-151.0,0.00011773,2]
[425123814,1781537431000,-500.0,0.00011794,2]
[425123816,1781537431000,-500.0,0.00011794,2]
[425123809,1781537431000,-153.0,0.00011773,2]
[425123811,1781537431000,-151.0,0.00011794,2]
[425123803,1781537431000,-19075.86986314,0.00011673,2]
[425123802,1781537431000,-151.0,0.00011673,2]
[425123806,1781537431000,-152.0,0.00011773,2]
[425123805,1781537431000,-366681.42370651,0.00011773,2]
[425123808,1781537431000,-151.0,0.00011773,2]
[425123804,1781537431000,-150.0,0.00011772,2]
[425123801,1781537431000,-194.53646879,0.00011673,2]
[425123800,1781537431000,-194.53646881,0.00011672,2]
[425123810,1781537431000,-152.0,0.00011794,2]
[425123829,1781537431000,-500.0,0.00011794,2]
[425123834,1781537431000,-500.0,0.00011794,2]
[425123830,1781537431000,-500.0,0.00011794,2]
[425123831,1781537431000,-500.0,0.00011794,2]
[425123856,1781537431000,-299.99,0.00012087,2]
[425123857,1781537431000,-1337.54,0.00012087,2]
[425123855,1781537431000,-500.0,0.00012086,2]
[425123849,1781537431000,-2237.30976994,0.00011812,2]
[425123848,1781537431000,-160.0,0.00011797,2]
[425123852,1781537431000,-150.0,0.0001203,2]
[425123851,1781537431000,-150.0,0.00011912,2]
[425123850,1781537431000,-8166.47368176,0.00011875,2]
[425123846,1781537431000,-216.09656886,0.00011797,2]
[425123847,1781537431000,-160.0,0.00011797,2]
[425123845,1781537431000,-2995.7234514,0.00011795,2]
[425123854,1781537431000,-166.66,0.00012086,2]
[425123858,1781537431000,-150.0,0.00012148,2]
[425123838,1781537431000,-500.0,0.00011794,2]
[425123832,1781537431000,-500.0,0.00011794,2]
[425123833,1781537431000,-500.0,0.00011794,2]
[425123835,1781537431000,-500.0,0.00011794,2]
[425123853,1781537431000,-19075.86986311,0.00012032,2]
[425123836,1781537431000,-500.0,0.00011794,2]
[425123841,1781537431000,-151.0,0.00011794,2]
[425123837,1781537431000,-560.6923296,0.00011794,2]
[425123839,1781537431000,-500.0,0.00011794,2]
[425123842,1781537431000,-150.0,0.00011794,2]
[425123843,1781537431000,-152.0,0.00011795,2]
[425123844,1781537431000,-73552.3993779,0.00011795,2]
[425123840,1781537431000,-500.0,0.00011794,2]
[425123891,1781537432000,-166.66,0.00013104,2]
[425123896,1781537432000,-1011.2,0.00013246,2]
[425123894,1781537432000,-8166.47368168,0.00013219,2]
[425123895,1781537432000,-500.0,0.00013233,2]
[425123883,1781537432000,-255.0,0.00012843,2]
[425123892,1781537432000,-19075.86986311,0.00013107,2]
[425123888,1781537432000,-500.0,0.00012986,2]
[425123890,1781537432000,-831.38,0.00013075,2]
[425123889,1781537432000,-300.0,0.0001306,2]
[425123893,1781537432000,-2237.3097699,0.00013135,2]
[425123897,1781537432000,-177.7,0.00013269,2]
[425123901,1781537432000,-150.0,0.00013488,2]
[425123899,1781537432000,-316.51,0.00013363,2]
[425123909,1781537432000,-500.0,0.00013698,2]
[425123908,1781537432000,-500.0,0.00013698,2]
[425123900,1781537432000,-831.38,0.00013394,2]
[425123902,1781537432000,-201.98842871,0.00013488,2]
[425123905,1781537432000,-2237.3097699,0.00013577,2]
[425123907,1781537432000,-500.0,0.00013698,2]
[425123904,1781537432000,-230.43,0.00013576,2]
[425123903,1781537432000,-8166.47368168,0.00013556,2]
[425123906,1781537432000,-385.06,0.00013698,2]
[425123880,1781537432000,-831.38,0.00012756,2]
[425123898,1781537432000,-166.66,0.00013358,2]
[425123884,1781537432000,-166.66,0.00012849,2]
[425123871,1781537432000,-1548.21,0.00012422,2]
[425123885,1781537432000,-500.0,0.00012864,2]
[425123860,1781537432000,-8166.47368168,0.00012211,2]
[425123859,1781537432000,-305.52995345,0.00012164,2]
[425123861,1781537432000,-1901.1,0.00012245,2]
[425123864,1781537432000,-253.82,0.00012274,2]
[425123862,1781537432000,-2237.3097699,0.00012253,2]
[425123863,1781537432000,-150.0,0.00012266,2]
[425123865,1781537432000,-1852.42,0.00012333,2]
[425123866,1781537432000,-166.66,0.0001234,2]
[425123869,1781537432000,-19075.86986311,0.0001239,2]
[425123868,1781537432000,-500.0,0.0001236,2]
[425123870,1781537432000,-2075.76,0.00012394,2]
[425123910,1781537432000,-500.0,0.00013698,2]
[425123872,1781537432000,-8166.47368168,0.00012547,2]
[425123874,1781537432000,-2000.0,0.00012627,2]
[425123876,1781537432000,-2395.5,0.00012696,2]
[425123875,1781537432000,-2237.3097699,0.00012694,2]
[425123867,1781537432000,-230.43,0.00012342,2]
[425123877,1781537432000,-150.0,0.00012702,2]
[425123887,1781537432000,-230.43,0.00012959,2]
[425123886,1781537432000,-8166.47368168,0.00012883,2]
[425123879,1781537432000,-19075.86986311,0.00012749,2]
[425123881,1781537432000,-166.66,0.00012837,2]
[425123882,1781537432000,-160.0,0.00012841,2]
[425123878,1781537432000,-6454.59,0.00012725,2]
[425123873,1781537432000,-166.66,0.00012595,2]
[425123914,1781537432000,-8166.47368168,0.00013892,2]
[425123937,1781537432000,-2237.3097699,0.00014459,2]
[425123919,1781537432000,-2237.3097699,0.00014018,2]
[425123945,1781537432000,-8166.47368168,0.00014564,2]
[425123946,1781537432000,-150.0,0.00014612,2]
[425123944,1781537432000,-316.51,0.00014563,2]
[425123948,1781537432000,-500.0,0.00014704,2]
[425123943,1781537432000,-2161.1970818,0.00014561,2]
[425123950,1781537432000,-250.0,0.00014708,2]
[425123949,1781537432000,-316.51,0.00014704,2]
[425123951,1781537432000,-1011.2,0.00014718,2]
[425123947,1781537432000,-316.51,0.00014635,2]
[425123952,1781537432000,-7902.949,0.00014755,2]
[425123954,1781537432000,-316.51,0.0001477,2]
[425123942,1781537432000,-26639.7172796,0.00014561,2]
[425123964,1781537432000,-152.24084378,0.000149,2]
[425123958,1781537432000,-500.0,0.00014899,2]
[425123956,1781537432000,-6718.0046839,0.0001485,2]
[425123955,1781537432000,-230.43,0.0001481,2]
[425123959,1781537432000,-481.04633503,0.00014899,2]
[425123957,1781537432000,-200.0,0.0001488,2]
[425123960,1781537432000,-500.0,0.00014899,2]
[425123962,1781537432000,-312.04934786,0.000149,2]
[425123961,1781537432000,-1132.291563,0.00014899,2]
[425123965,1781537432000,-1840.74006792,0.000149,2]
[425123966,1781537432000,-8166.47368168,0.000149,2]
[425123912,1781537432000,-316.51,0.00013787,2]
[425123953,1781537432000,-559.206,0.00014755,2]
[425123938,1781537432000,-316.51,0.00014485,2]
[425123963,1781537432000,-432.9914817,0.000149,2]
[425123939,1781537432000,-468.731337,0.00014554,2]
[425123936,1781537432000,-316.51,0.00014402,2]
[425123917,1781537432000,-250.0,0.00014,2]
[425123920,1781537432000,-500.0,0.0001402,2]
[425123916,1781537432000,-1548.21,0.00013974,2]
[425123918,1781537432000,-433.0,0.00014008,2]
[425123915,1781537432000,-316.51,0.00013963,2]
[425123922,1781537432000,-831.38,0.00014032,2]
[425123925,1781537432000,-316.51,0.00014211,2]
[425123924,1781537432000,-230.43,0.00014193,2]
[425123921,1781537432000,-2000.0,0.0001403,2]
[425123923,1781537432000,-316.51,0.00014098,2]
[425123911,1781537432000,-831.38,0.00013713,2]
[425123927,1781537432000,-150.0,0.00014237,2]
[425123941,1781537432000,-720.3990273,0.00014561,2]
[425123926,1781537432000,-8166.47368168,0.00014228,2]
[425123940,1781537432000,-336.2621168,0.00014561,2]
[425123933,1781537432000,-166.458074,0.0001427,2]
[425123931,1781537432000,-5748.36269084,0.0001426,2]
[425123913,1781537432000,-150.0,0.00013862,2]
[425123935,1781537432000,-316.51,0.00014311,2]
[425123932,1781537432000,-7777.737,0.0001426,2]
[425123930,1781537432000,-3842.64204824,0.0001426,2]
[425123928,1781537432000,-825.39184586,0.0001426,2]
[425123934,1781537432000,-214.57486,0.00014273,2]
[425123929,1781537432000,-2178.2221402,0.0001426,2]
[425124009,1781537433000,-500.0,0.00014999,2]
[425123991,1781537433000,-688.49460835,0.0001499,2]
[425123989,1781537433000,-500.0,0.00014985,2]
[425123993,1781537433000,-688.49460835,0.0001499,2]
[425123987,1781537433000,-151.0,0.0001497,2]
[425123988,1781537433000,-151.0,0.0001497,2]
[425123994,1781537433000,-151.0,0.00014997,2]
[425123996,1781537433000,-500.0,0.00014999,2]
[425123995,1781537433000,-574.57860626,0.00014999,2]
[425123999,1781537433000,-500.0,0.00014999,2]
[425123998,1781537433000,-500.0,0.00014999,2]
[425124004,1781537433000,-500.0,0.00014999,2]
[425124002,1781537433000,-500.0,0.00014999,2]
[425124003,1781537433000,-500.0,0.00014999,2]
[425124005,1781537433000,-500.0,0.00014999,2]
[425124001,1781537433000,-500.0,0.00014999,2]
[425124006,1781537433000,-500.0,0.00014999,2]
[425123985,1781537433000,-1181.875596,0.0001497,2]
[425123997,1781537433000,-500.0,0.00014999,2]
[425124000,1781537433000,-500.0,0.00014999,2]
[425123983,1781537433000,-500.0,0.0001497,2]
[425123990,1781537433000,-194.50273951,0.00014986,2]
[425124012,1781537433000,-500.0,0.00014999,2]
[425123972,1781537433000,-1000.0,0.0001497,2]
[425123967,1781537433000,-2237.3097699,0.000149,2]
[425123970,1781537433000,-1000.0,0.0001497,2]
[425123969,1781537433000,-166.66,0.00014956,2]
[425123971,1781537433000,-500.0,0.0001497,2]
[425123968,1781537433000,-447.45479291,0.000149,2]
[425123973,1781537433000,-500.0,0.0001497,2]
[425123974,1781537433000,-1000.0,0.0001497,2]
[425123976,1781537433000,-1000.0,0.0001497,2]
[425123981,1781537433000,-1181.875596,0.0001497,2]
[425123982,1781537433000,-1181.875596,0.0001497,2]
[425123980,1781537433000,-1181.875596,0.0001497,2]
[425123979,1781537433000,-1761.85374057,0.0001497,2]
[425123977,1781537433000,-707.37855037,0.0001497,2]
[425123978,1781537433000,-1000.0,0.0001497,2]
[425123975,1781537433000,-500.0,0.0001497,2]
[425123984,1781537433000,-432.754693,0.0001497,2]
[425123986,1781537433000,-151.0,0.0001497,2]
[425123992,1781537433000,-688.49460835,0.0001499,2]
[425124014,1781537433000,-500.0,0.00014999,2]
[425124036,1781537433000,-500.0,0.00014999,2]
[425124015,1781537433000,-500.0,0.00014999,2]
[425124042,1781537433000,-300.0,0.00014999,2]
[425124010,1781537433000,-500.0,0.00014999,2]
[425124035,1781537433000,-500.0,0.00014999,2]
[425124038,1781537433000,-500.0,0.00014999,2]
[425124033,1781537433000,-500.0,0.00014999,2]
[425124039,1781537433000,-500.0,0.00014999,2]
[425124037,1781537433000,-500.0,0.00014999,2]
[425124044,1781537433000,-300.0,0.00014999,2]
[425124034,1781537433000,-500.0,0.00014999,2]
[425124043,1781537433000,-300.0,0.00014999,2]
[425124046,1781537433000,-222179.89014971,0.00015,2]
[425124045,1781537433000,-300.0,0.00014999,2]
[425124048,1781537433000,-46015.3817964,0.00015,2]
[425124051,1781537433000,-419.22850987,0.00015,2]
[425124047,1781537433000,-74222.66467406,0.00015,2]
[425124049,1781537433000,-1584.7706,0.00015,2]
[425124053,1781537433000,-2507.99198305,0.00015,2]
[425124052,1781537433000,-29437.1845077,0.00015,2]
[425124050,1781537433000,-263310.87769008,0.00015,2]
[425124032,1781537433000,-500.0,0.00014999,2]
[425124040,1781537433000,-500.0,0.00014999,2]
[425124041,1781537433000,-285.09495802,0.00014999,2]
[425124017,1781537433000,-500.0,0.00014999,2]
[425124013,1781537433000,-500.0,0.00014999,2]
[425124007,1781537433000,-500.0,0.00014999,2]
[425124016,1781537433000,-500.0,0.00014999,2]
[425124008,1781537433000,-500.0,0.00014999,2]
[425124031,1781537433000,-500.0,0.00014999,2]
[425124029,1781537433000,-500.0,0.00014999,2]
[425124019,1781537433000,-1294.36,0.00014999,2]
[425124020,1781537433000,-500.0,0.00014999,2]
[425124011,1781537433000,-500.0,0.00014999,2]
[425124018,1781537433000,-531.03,0.00014999,2]
[425124022,1781537433000,-500.0,0.00014999,2]
[425124027,1781537433000,-500.0,0.00014999,2]
[425124026,1781537433000,-500.0,0.00014999,2]
[425124021,1781537433000,-500.0,0.00014999,2]
[425124028,1781537433000,-500.0,0.00014999,2]
[425124025,1781537433000,-500.0,0.00014999,2]
[425124024,1781537433000,-500.0,0.00014999,2]
[425124030,1781537433000,-500.0,0.00014999,2]
[425124023,1781537433000,-494.24,0.00014999,2]
[425124063,1781537437000,-1661.07090915,0.00013466,2]
[425124064,1781537437000,-7713.21534222,0.00013466,2]
[425124062,1781537437000,-194.53646879,0.00011673,2]
[425124096,1781537439000,-486816.47494408,0.00015,2]
[425124095,1781537439000,-19075.86986311,0.00013824,2]
[425124094,1781537439000,-9701.58361174,0.00013466,2]
[425124118,1781537440000,-101.92016604,0.00015,2]
[425124097,1781537440000,-305.15587,0.00015,2]
[425124123,1781537442000,-300.19788409,0.00015,2]
[425124124,1781537442000,-394.87202445,0.00015,2]
[425124125,1781537442000,-1868.9184465,0.00015,2]
[425124130,1781537443000,-553.89076398,0.00015,2]
[425124142,1781537445000,-438.126,0.00015,2]
[425124141,1781537445000,-10034.65000719,0.00015,2]
[425124140,1781537445000,-1279.40585,0.00015,2]
[425124137,1781537445000,-1924.777,0.00015,2]
[425124139,1781537445000,-6212.756,0.00015,2]
[425124138,1781537445000,-2648.012256,0.00015,2]
[425124136,1781537445000,-4354.38191505,0.00015,2]
[425124134,1781537445000,-441.68468946,0.00015,2]
[425124135,1781537445000,-1000.88383104,0.00015,2]
[425124133,1781537445000,-343920.95579089,0.00015,2]
[425124131,1781537445000,-153.0,0.00013466,2]
[425124132,1781537445000,-19075.86986311,0.00014183,2]
[425124143,1781537445000,-581.73,0.00015,2]
[425124146,1781537446000,-20094.73503424,0.00015,2]
[425124145,1781537446000,-974.46124942,0.00015,2]
[425124144,1781537446000,-268213.49606375,0.00015,2]
[425124150,1781537578000,380.34641427,0.00010873,2]
[425124151,1781537579000,334.58976835,0.00010873,2]
[425124157,1781537700000,-151.0,0.00011614,2]
[425124156,1781537700000,-152.0,0.00011614,2]
[425124154,1781537700000,-932.26726,0.00011573,2]
[425124155,1781537700000,-150.0,0.00011614,2]
[425124153,1781537700000,-199.5,0.00011564,2]
[425124152,1781537700000,-2224.847203,0.00011506,2]
[425124159,1781537701000,-152.0,0.00011614,2]
[425124158,1781537701000,-152.0,0.00011614,2]
[425124160,1781537701000,-160.0,0.00011616,2]
[425124163,1781537701000,-500.0,0.00011672,2]
[425124165,1781537701000,-150.0,0.00011672,2]
[425124161,1781537701000,-160.0,0.00011616,2]
[425124167,1781537701000,-562.29914773,0.00011672,2]
[425124164,1781537701000,-553.36744284,0.00011672,2]
[425124168,1781537701000,-517.69009337,0.00011672,2]
[425124166,1781537701000,-500.0,0.00011672,2]
[425124173,1781537701000,-500.0,0.00011672,2]
[425124174,1781537701000,-133.02885306,0.00011672,2]
[425124172,1781537701000,-500.0,0.00011672,2]
[425124162,1781537701000,-150.0,0.0001167,2]
[425124169,1781537701000,-500.0,0.00011672,2]
[425124171,1781537701000,-500.0,0.00011672,2]
[425124170,1781537701000,-500.0,0.00011672,2]
[425124182,1781537702000,-6807.68438438,0.00011673,2]
[425124181,1781537702000,-500.0,0.00011672,2]
[425124179,1781537702000,-500.0,0.00011672,2]
[425124180,1781537702000,-325.34446868,0.00011672,2]
[425124178,1781537702000,-500.0,0.00011672,2]
[425124176,1781537702000,-500.0,0.00011672,2]
[425124177,1781537702000,-500.0,0.00011672,2]
[425124175,1781537702000,-366.97114694,0.00011672,2]
[425124183,1781537703000,-10000.0,0.00011673,2]
[425124184,1781537704000,-10000.0,0.00011673,2]
[425124185,1781537705000,-10000.0,0.00011673,2]
[425124186,1781537706000,-10000.0,0.00011673,2]
[425124187,1781537707000,-10000.0,0.00011673,2]
[425124188,1781537707000,-10000.0,0.00011673,2]
[425124189,1781537708000,-10000.0,0.00011673,2]
[425124190,1781537709000,-10000.0,0.00011673,2]
[425124191,1781537710000,-10000.0,0.00011673,2]
[425124193,1781537711000,-10000.0,0.00011673,2]
[425124192,1781537711000,-10000.0,0.00011673,2]
[425124194,1781537713000,-10000.0,0.00011673,2]
[425124195,1781537714000,-10000.0,0.00011673,2]
[425124196,1781537732000,-10000.0,0.00011673,2]